bitfinex/quotes_BTCUSD_20250222
["timestamp","ask_amount","ask_price","bid_price","bid_amount"]
[1740242171139,0.0037006,96848.0,96847.0,0.2948655]
[1740242175509,0.0037006,96848.0,96847.0,0.28117505]
[1740242175644,0.0037006,96848.0,96847.0,0.2957159]
[1740242175852,0.0037006,96848.0,96847.0,0.4261159]
[1740242177398,0.0037006,96848.0,96847.0,0.4312858]
[1740242178321,0.0037006,96848.0,96847.0,0.4395658]
[1740242178677,0.0037006,96848.0,96847.0,0.4312858]
[1740242178881,0.0037006,96848.0,96847.0,0.4395658]
[1740242179062,0.001701,96873.0,96854.0,0.154872]
[1740242179269,0.001701,96873.0,96854.0,0.25875635]
[1740242179505,0.001701,96873.0,96854.0,0.25751769]
[1740242180196,0.001701,96873.0,96854.0,0.27205854]
[1740242180322,0.00277661,96855.0,96854.0,0.35715854]
[1740242180765,6.1e-07,96855.0,96854.0,0.35715854]
[1740242180962,6.1e-07,96855.0,96854.0,0.36015854]
[1740242180963,0.00100061,96855.0,96854.0,0.36015854]
[1740242181365,6.1e-07,96855.0,96854.0,0.35715854]
[1740242181591,6.1e-07,96855.0,96854.0,0.36556011]
[1740242181875,0.00100061,96855.0,96854.0,0.36856011]
[1740242182277,0.001,96855.0,96854.0,0.36456011]
[1740242182709,0.001,96855.0,96854.0,0.37156011]
[1740242183155,0.001,96855.0,96854.0,0.52156011]
[1740242183359,0.001701,96873.0,96861.0,0.02]
[1740242183560,0.001701,96873.0,96872.0,0.154843]
[1740242183768,0.001701,96873.0,96872.0,0.25748869]
[1740242185408,0.001701,96873.0,96872.0,0.26148869]
[1740242185914,0.001701,96873.0,96872.0,0.27189026]
[1740242187693,0.001701,96873.0,96872.0,0.26672036]
[1740242188896,0.001701,96873.0,96872.0,0.26472036]
[1740242189438,0.001701,96873.0,96872.0,0.26972036]
[1740242189675,0.001701,96873.0,96872.0,0.27089026]
[1740242190033,0.001701,96873.0,96872.0,0.27789026]
[1740242192991,0.001701,96873.0,96872.0,0.27272036]
[1740242194815,0.001701,96873.0,96872.0,0.27789026]
[1740242203985,0.001701,96873.0,96872.0,0.27272036]
[1740242211355,0.001701,96873.0,96872.0,0.17007467]
[1740242213002,0.001701,96873.0,96872.0,0.17524393]
[1740242214313,0.001701,96873.0,96872.0,0.17007467]
[1740242216551,0.001701,96873.0,96872.0,0.17131327]
[1740242216761,0.001701,96873.0,96872.0,0.27395896]
[1740242216971,0.001701,96873.0,96872.0,0.27272036]
[1740242220779,0.001701,96873.0,96872.0,0.17007467]
[1740242221125,0.001701,96873.0,96872.0,0.01523167]
[1740242221335,0.238842,96873.0,96872.0,0.01523167]
[1740242221975,0.238842,96873.0,96872.0,0.012]
[1740242222385,0.238842,96873.0,96872.0,0.005]
[1740242222586,0.154845,96871.0,96870.0,0.09265704]
[1740242222986,0.206458,96872.0,96863.0,0.24751404]
[1740242223186,0.154846,96870.0,96863.0,0.09265704]
[1740242223448,0.206458,96872.0,96863.0,0.09265704]
[1740242223576,0.084001,96873.0,96863.0,0.09265704]
[1740242223922,0.154846,96870.0,96864.0,0.154856]
[1740242224156,0.084001,96873.0,96863.0,0.09265704]
[1740242224574,0.154851,96867.0,96863.0,0.09265704]
[1740242224978,0.154849,96869.0,96863.0,0.24751404]
[1740242225180,0.15485,96868.0,96863.0,0.09365704]
[1740242225591,0.15485,96868.0,96863.0,0.09265704]
[1740242225796,0.154844,96872.0,96865.0,0.154853]
[1740242226037,0.154846,96871.0,96864.0,0.17039068]
[1740242226246,0.45446125,96873.0,96864.0,0.17039068]
[1740242226457,0.154845,96871.0,96865.0,0.154853]
[1740242226586,0.45446025,96873.0,96864.0,0.01553468]
[1740242226801,0.24800525,96873.0,96864.0,0.01553468]
[1740242227146,0.154844,96872.0,96865.0,0.154854]
[1740242227348,0.24800525,96873.0,96865.0,0.154854]
[1740242227543,0.154843,96872.0,96865.0,0.154854]
[1740242228048,0.154843,96872.0,96865.0,0.154853]
[1740242228621,0.154843,96872.0,96866.0,0.154852]
[1740242229365,0.154843,96872.0,96867.0,0.01553193]
[1740242229821,0.24800525,96873.0,96867.0,0.01553193]
[1740242229986,0.154843,96872.0,96867.0,0.01553193]
[1740242230948,0.24800525,96873.0,96867.0,0.01653193]
[1740242231150,0.24800525,96873.0,96867.0,0.001]
[1740242231371,0.154849,96869.0,96867.0,0.001]
[1740242231580,0.206461,96871.0,96867.0,0.001]
[1740242231808,0.24800525,96873.0,96867.0,0.001]
[1740242232007,0.154847,96870.0,96867.0,0.001]
[1740242232269,0.154847,96870.0,96863.0,0.154857]
[1740242232473,0.154847,96870.0,96867.0,0.001]
[1740242232677,0.24800525,96873.0,96867.0,0.001]
[1740242232871,0.154849,96869.0,96868.0,0.01553101]
[1740242233080,0.206461,96871.0,96868.0,0.01553101]
[1740242233237,0.154848,96869.0,96868.0,0.01553101]
[1740242233521,0.45446225,96873.0,96867.0,0.002]
[1740242233690,0.206458,96872.0,96861.0,0.00043008]
[1740242234239,0.154852,96867.0,96861.0,0.15528908]
[1740242234438,0.206464,96869.0,96861.0,0.00043008]
[1740242234647,0.24800525,96873.0,96867.0,0.001]
[1740242234842,0.154849,96868.0,96867.0,0.001]
[1740242235439,0.281449,96868.0,96867.0,0.001]
[1740242235609,0.35090118,96868.0,96867.0,0.001]
[1740242235987,0.46630666,96868.0,96867.0,0.001]
[1740242236157,0.31145766,96868.0,96861.0,0.00043008]
[1740242236406,0.431459,96862.0,96861.0,0.00043008]
[1740242236606,0.53410469,96862.0,96861.0,0.00043008]
[1740242236723,0.56896235,96862.0,96861.0,0.00043008]
[1740242237580,0.89566235,96862.0,96861.0,0.00143008]
[1740242238142,0.90325227,96862.0,96861.0,0.00143008]
[1740242239037,0.90125227,96862.0,96861.0,0.00043008]
[1740242239224,0.90325227,96862.0,96861.0,0.00143008]
[1740242239821,1.30343627,96862.0,96861.0,0.00143008]
[1740242239987,1.34303079,96862.0,96861.0,0.00243008]
[1740242240391,1.34841357,96862.0,96861.0,0.00243008]
[1740242241416,1.34841357,96862.0,96861.0,8e-08]
[1740242241614,0.94822957,96862.0,96861.0,8e-08]
[1740242242099,0.431481,96848.0,96837.0,0.0008504]
[1740242242304,0.53412669,96848.0,96837.0,0.0008504]
[1740242242478,0.56898435,96848.0,96837.0,0.0008504]
[1740242243264,0.57098435,96848.0,96837.0,0.0008504]
[1740242243427,0.57598435,96848.0,96847.0,0.0018504]
[1740242243806,0.57298435,96848.0,96847.0,0.0008504]
[1740242244005,0.57298435,96848.0,96847.0,0.0018504]
[1740242244237,0.57798435,96848.0,96847.0,0.0018504]
[1740242247312,0.90268435,96848.0,96847.0,0.0018504]
[1740242259045,0.86782669,96848.0,96847.0,0.0018504]
[1740242267765,1.04535439,96848.0,96847.0,0.0018504]
[1740242269313,0.86782669,96848.0,96847.0,0.0018504]
[1740242272446,0.89755897,96848.0,96847.0,0.0018504]
[1740242279488,0.93241663,96848.0,96847.0,0.0018504]
[1740242281222,0.81825897,96848.0,96847.0,0.0018504]
[1740242284412,0.85311663,96848.0,96847.0,0.0018504]
[1740242287341,0.81825897,96848.0,96847.0,0.0018504]
[1740242295629,0.81825897,96848.0,96847.0,0.02272334]
[1740242295851,0.81825897,96848.0,96847.0,0.0018504]
[1740242296058,0.77095897,96848.0,96847.0,0.0018504]
[1740242296463,0.74122669,96848.0,96847.0,0.0018504]
[1740242296793,0.638581,96848.0,96847.0,0.0018504]
[1740242297174,0.634581,96848.0,96847.0,0.0018504]
[1740242297361,0.638581,96848.0,96847.0,0.0018504]
[1740242297990,0.633581,96848.0,96847.0,0.0008504]
[1740242298471,0.639581,96848.0,96847.0,0.0018504]
[1740242299072,0.633581,96848.0,96847.0,0.0008504]
[1740242299274,0.637581,96848.0,96847.0,0.0008504]
[1740242303073,0.74022669,96848.0,96847.0,0.0008504]
[1740242310887,0.637581,96848.0,96847.0,0.0008504]
[1740242311293,0.487581,96848.0,96847.0,0.0008504]
[1740242311714,0.3327,96848.0,96847.0,0.1557334]
[1740242311859,0.3327,96848.0,96847.0,0.1229504]
[1740242312054,0.3327,96848.0,96847.0,0.13850068]
[1740242312260,0.487581,96848.0,96847.0,0.13850068]
[1740242312705,0.487581,96848.0,96847.0,0.1229504]
[1740242313209,0.483581,96848.0,96847.0,0.1229504]
[1740242313417,0.486581,96848.0,96847.0,0.1229504]
[1740242313776,0.482581,96848.0,96847.0,0.1229504]
[1740242313977,0.483581,96848.0,96847.0,0.1229504]
[1740242314186,0.486581,96848.0,96847.0,0.1229504]
[1740242314589,0.483581,96848.0,96847.0,0.1229504]
[1740242315021,0.485581,96848.0,96847.0,0.1229504]
[1740242315719,0.485581,96848.0,96847.0,0.0776504]
[1740242315927,0.485581,96848.0,96847.0,0.0008504]
[1740242316488,0.48024933,96848.0,96847.0,0.0008504]
[1740242319671,0.47624933,96848.0,96847.0,0.0008504]
[1740242320313,0.47424933,96848.0,96847.0,0.0008504]
[1740242321537,0.51169744,96848.0,96847.0,0.0008504]
[1740242322179,0.51369744,96848.0,96847.0,0.0008504]
[1740242322679,0.51469744,96848.0,96847.0,0.0008504]
[1740242323220,0.51769744,96848.0,96847.0,0.0008504]
[1740242323764,0.51569744,96848.0,96847.0,0.0008504]
[1740242323969,0.51469744,96848.0,96847.0,0.0008504]
[1740242324385,0.51669744,96848.0,96847.0,0.0008504]
[1740242324752,0.52269744,96848.0,96847.0,0.0018504]
[1740242328263,0.77534313,96848.0,96847.0,0.0018504]
[1740242329306,0.73789502,96848.0,96847.0,0.0018504]
[1740242329887,0.63524933,96848.0,96847.0,0.0018504]
[1740242330707,0.48036833,96848.0,96847.0,0.0018504]
[1740242331215,0.33036833,96848.0,96847.0,0.1567334]
[1740242331418,0.011,96848.0,96847.0,0.0831504]
[1740242331615,0.005,96848.0,96847.0,0.0821504]
[1740242331783,0.206504,96850.0,96847.0,0.0821504]
[1740242331996,0.156881,96848.0,96847.0,0.0821504]
[1740242332399,0.002,96848.0,96847.0,0.0821504]
[1740242332865,0.156881,96848.0,96847.0,0.0821504]
[1740242333204,0.155881,96848.0,96847.0,0.0821504]
[1740242334367,0.157881,96848.0,96847.0,0.0821504]
[1740242336900,0.157881,96848.0,96847.0,0.0008504]
[1740242337334,0.15888105,96848.0,96847.0,0.0008504]
[1740242337711,0.157881,96848.0,96847.0,0.0008504]
[1740242339016,0.1595824,96848.0,96847.0,0.0008504]
[1740242340148,0.16058245,96848.0,96847.0,0.0008504]
[1740242340694,0.41322814,96848.0,96847.0,0.0008504]
[1740242340926,0.80615184,96848.0,96847.0,0.0008504]
[1740242342705,0.80315184,96848.0,96847.0,0.0008504]
[1740242342843,0.81615184,96848.0,96847.0,0.0018504]
[1740242345000,0.77904453,96848.0,96847.0,0.0018504]
[1740242356032,0.85814453,96848.0,96847.0,0.0018504]
[1740242356428,0.86353782,96848.0,96847.0,0.0018504]
[1740242356953,0.90903782,96848.0,96847.0,0.0018504]
[1740242357113,0.94614517,96848.0,96847.0,0.0018504]
[1740242358402,0.15,96847.0,96837.0,0.0008504]
[1740242358604,0.304897,96838.0,96837.0,0.0008504]
[1740242360603,0.307897,96838.0,96837.0,0.0008504]
[1740242360780,0.310897,96838.0,96837.0,0.0008504]
[1740242363084,0.63026533,96838.0,96837.0,0.0008504]
[1740242364061,0.64043726,96838.0,96837.0,0.0008504]
[1740242366983,0.64833133,96838.0,96837.0,0.0008504]
[1740242380454,0.328963,96838.0,96837.0,0.0008504]
[1740242395417,0.56330869,96838.0,96837.0,0.0008504]
[1740242395820,0.6007568,96838.0,96837.0,0.0008504]
[1740242396146,0.66761662,96838.0,96837.0,4e-07]
[1740242396320,0.67300954,96838.0,96837.0,4e-07]
[1740242396509,0.77565523,96838.0,96837.0,4e-07]
[1740242397328,0.304912,96829.0,96828.0,0.0008108]
[1740242397533,0.51186562,96829.0,96828.0,0.0008108]
[1740242398551,0.51186562,96829.0,96828.0,0.00088621]
[1740242398840,0.64356562,96829.0,96828.0,0.00088621]
[1740242399686,0.64956562,96829.0,96828.0,0.00088621]
[1740242400154,0.64356562,96829.0,96828.0,0.00088621]
[1740242400428,0.61345827,96829.0,96828.0,0.00088621]
[1740242400613,0.61845827,96829.0,96828.0,0.00088621]
[1740242401077,0.46905769,96829.0,96828.0,0.00088621]
[1740242401488,0.41955769,96829.0,96828.0,0.00088621]
[1740242401709,0.26464569,96829.0,96828.0,0.00088621]
[1740242401908,0.41955769,96829.0,96828.0,0.00088621]
[1740242402141,0.162,96829.0,96828.0,0.00088621]
[1740242409094,0.163701,96829.0,96828.0,0.00088621]
[1740242413566,0.398113,96829.0,96828.0,0.00088621]
[1740242413912,0.5382068,96829.0,96828.0,0.00088621]
[1740242420356,0.4587068,96829.0,96828.0,0.00088621]
[1740242425613,0.26634669,96829.0,96828.0,0.00088621]
[1740242426211,0.163701,96829.0,96828.0,0.00088621]
[1740242427302,0.013701,96829.0,96828.0,0.00088621]
[1740242427722,0.001701,96829.0,96828.0,0.01444922]
[1740242428144,0.013701,96829.0,96828.0,0.01444922]
[1740242428355,0.013701,96829.0,96828.0,0.24976222]
[1740242428556,0.006701,96829.0,96828.0,0.09484922]
[1740242429799,0.003701,96829.0,96828.0,0.09484922]
[1740242430003,0.004701,96829.0,96828.0,0.09484922]
[1740242436064,0.004701,96829.0,96828.0,0.24976222]
[1740242437069,0.002701,96829.0,96828.0,0.24976222]
[1740242437265,0.001701,96829.0,96828.0,0.24976222]
[1740242437520,0.001701,96829.0,96828.0,0.25076222]
[1740242437761,0.001701,96829.0,96828.0,0.09684922]
[1740242437967,0.001701,96829.0,96828.0,0.01644922]
[1740242438173,0.19406111,96829.0,96828.0,0.01644922]
[1740242438388,0.19406111,96829.0,96828.0,0.00288621]
[1740242438984,0.19406111,96829.0,96828.0,0.00188621]
[1740242439188,0.29970685,96829.0,96828.0,0.00188621]
[1740242439406,0.2987068,96829.0,96828.0,0.00088621]
[1740242439609,0.2997068,96829.0,96828.0,0.00088621]
[1740242439804,0.2967068,96829.0,96828.0,0.00088621]
[1740242440212,0.3037068,96829.0,96828.0,0.00088621]
[1740242441086,0.3087068,96829.0,96828.0,0.00088621]
[1740242442301,0.4587068,96829.0,96828.0,0.00088621]
[1740242443023,0.42125869,96829.0,96828.0,0.00088621]
[1740242443407,0.648313,96829.0,96828.0,0.00088621]
[1740242446297,0.318613,96829.0,96828.0,0.00088621]
[1740242446495,0.42125869,96829.0,96828.0,0.00088621]
[1740242451703,0.4587068,96829.0,96828.0,0.00088621]
[1740242452132,0.49581415,96829.0,96828.0,0.00088621]
[1740242452861,0.54820826,96829.0,96828.0,0.00088621]
[1740242453218,0.51110091,96829.0,96828.0,0.00088621]
[1740242458618,0.46410091,96829.0,96828.0,0.00088621]
[1740242460431,0.4266528,96829.0,96828.0,0.00088621]
[1740242462818,0.32400711,96829.0,96828.0,0.00088621]
[1740242463019,0.318613,96829.0,96828.0,0.00088621]
[1740242463995,0.311613,96829.0,96828.0,0.00088621]
[1740242465171,0.306613,96829.0,96828.0,0.00088621]
[1740242465584,0.309613,96829.0,96828.0,0.00088621]
[1740242466101,0.307613,96829.0,96828.0,0.00088621]
[1740242466361,0.309613,96829.0,96828.0,0.00088621]
[1740242468212,0.154701,96829.0,96828.0,0.00088621]
[1740242468421,0.309613,96829.0,96828.0,0.00088621]
[1740242468594,0.154701,96829.0,96828.0,0.00088621]
[1740242470362,0.004701,96829.0,96828.0,0.25092617]
[1740242470711,0.002701,96829.0,96828.0,0.25092617]
[1740242470884,0.004701,96829.0,96828.0,0.25092617]
[1740242471919,0.003701,96829.0,96828.0,0.25092617]
[1740242472116,0.004701,96829.0,96828.0,0.25092617]
[1740242472327,0.002701,96829.0,96828.0,0.25092617]
[1740242472521,0.005701,96829.0,96828.0,0.25092617]
[1740242474816,0.003701,96829.0,96828.0,0.25092617]
[1740242475221,0.003701,96829.0,96828.0,0.25192617]
[1740242475433,0.001701,96829.0,96828.0,0.25192617]
[1740242479938,0.001701,96829.0,96828.0,0.09701317]
[1740242480859,0.001701,96829.0,96828.0,0.01691317]
[1740242483282,0.156613,96829.0,96828.0,0.01691317]
[1740242484020,0.156613,96829.0,96828.0,0.00188621]
[1740242485671,0.156613,96829.0,96828.0,0.01691317]
[1740242486072,0.156613,96829.0,96828.0,0.00188621]
[1740242486314,0.16307797,96829.0,96828.0,0.01691317]
[1740242486517,0.16307797,96829.0,96828.0,0.00188621]
[1740242488317,0.16307797,96829.0,96828.0,0.01691317]
[1740242488717,0.16307797,96829.0,96828.0,0.00188621]
[1740242488932,0.16407802,96829.0,96828.0,0.00188621]
[1740242489150,0.16307797,96829.0,96828.0,0.00188621]
[1740242489361,0.16307797,96829.0,96828.0,0.00088621]
[1740242489776,0.16407797,96829.0,96828.0,0.00088621]
[1740242490364,0.16607797,96829.0,96828.0,0.00088621]
[1740242491881,0.01216597,96829.0,96828.0,0.00088621]
[1740242492095,0.01216597,96829.0,96828.0,0.15579921]
[1740242492300,0.01216597,96829.0,96828.0,0.17333867]
[1740242492506,0.01116597,96829.0,96828.0,0.17333867]
[1740242492705,0.01416597,96829.0,96828.0,0.17333867]
[1740242493114,0.00816597,96829.0,96828.0,0.17333867]
[1740242493335,0.00916597,96829.0,96828.0,0.17333867]
[1740242493535,0.01116597,96829.0,96828.0,0.17333867]
[1740242494767,0.01016597,96829.0,96828.0,0.17333867]
[1740242494973,0.00816597,96829.0,96828.0,0.17333867]
[1740242495572,0.00816597,96829.0,96828.0,0.17433867]
[1740242499538,0.16307797,96829.0,96828.0,0.01942567]
[1740242499863,0.16307797,96829.0,96828.0,0.00188621]
[1740242501470,0.16307797,96829.0,96828.0,0.00088621]
[1740242517067,0.16307797,96829.0,96828.0,0.00029021]
[1740242518902,0.31307797,96829.0,96828.0,0.00029021]
[1740242519113,0.34961536,96829.0,96828.0,0.00029021]
[1740242520243,0.45626105,96829.0,96828.0,0.00029021]
[1740242520572,0.53556105,96829.0,96828.0,0.00029021]
[1740242520782,0.86526105,96829.0,96828.0,0.00029021]
[1740242521028,0.91776105,96829.0,96828.0,0.00029021]
[1740242521233,0.91376105,96829.0,96828.0,0.00029021]
[1740242521439,0.86922366,96829.0,96828.0,0.00029021]
[1740242521650,0.88022366,96829.0,96828.0,0.00029021]
[1740242522695,0.87422366,96829.0,96828.0,0.00029021]
[1740242523098,0.88022366,96829.0,96828.0,0.00029021]
[1740242523540,0.88522366,96829.0,96828.0,0.00029021]
[1740242529499,0.80892366,96829.0,96828.0,0.00029021]
[1740242537700,0.80245869,96829.0,96828.0,0.00029021]
[1740242540338,0.652313,96829.0,96828.0,0.00029021]
[1740242567852,0.75495869,96829.0,96828.0,0.00029021]
[1740242582085,0.78471391,96829.0,96828.0,0.00029021]
[1740242585271,0.75495869,96829.0,96828.0,0.00029021]
[1740242596360,0.78472279,96829.0,96828.0,0.00029021]
[1740242601495,0.82148872,96829.0,96828.0,0.00029021]
[1740242602030,0.85859607,96829.0,96828.0,0.00029021]
[1740242605212,0.86506338,96829.0,96828.0,0.00029021]
[1740242608420,0.8704168,96829.0,96828.0,0.00029021]
[1740242611720,0.8544168,96829.0,96828.0,0.00029021]
[1740242612012,0.8674168,96829.0,96828.0,0.00029021]
[1740242612426,0.8614168,96829.0,96828.0,0.00029021]
[1740242612601,0.8674168,96829.0,96828.0,0.00029021]
[1740242612805,0.83030945,96829.0,96828.0,0.00029021]
[1740242613849,0.82330945,96829.0,96828.0,0.00029021]
[1740242614287,0.83030945,96829.0,96828.0,0.00029021]
[1740242616020,0.80054535,96829.0,96828.0,0.00029021]
[1740242616232,0.83029553,96829.0,96828.0,0.00029021]
[1740242616600,0.82382822,96829.0,96828.0,0.07669021]
[1740242616765,0.75731211,96829.0,96828.0,0.07669021]
[1740242616970,0.49975442,96829.0,96828.0,0.07669021]
[1740242617176,0.494401,96829.0,96828.0,0.07669021]
[1740242617743,0.488401,96829.0,96828.0,0.07669021]
[1740242617972,0.481401,96829.0,96828.0,0.09422967]
[1740242618179,0.488401,96829.0,96828.0,0.09422967]
[1740242619857,0.643313,96829.0,96828.0,0.09422967]
[1740242620028,0.488401,96829.0,96828.0,0.09422967]
[1740242624028,0.643313,96829.0,96828.0,0.09422967]
[1740242624347,0.643313,96829.0,96828.0,0.07669021]
[1740242624751,0.64977865,96829.0,96828.0,0.07669021]
[1740242625691,0.49486665,96829.0,96828.0,0.07669021]
[1740242626397,0.49486665,96829.0,96828.0,0.09436044]
[1740242627803,0.49486665,96829.0,96828.0,0.01796044]
[1740242628236,0.64977865,96829.0,96828.0,0.00029021]
[1740242628369,0.49486665,96829.0,96828.0,0.00029021]
[1740242629511,0.64977865,96829.0,96828.0,0.00029021]
[1740242639641,0.75242434,96829.0,96828.0,0.00029021]
[1740242639856,0.78897149,96829.0,96828.0,0.00029021]
[1740242641164,0.7967095,96829.0,96828.0,0.00029021]
[1740242643542,0.154939,96812.0,96811.0,0.0826058]
[1740242643699,0.154939,96812.0,96811.0,0.0827348]
[1740242644104,0.154939,96812.0,96811.0,0.10055476]
[1740242644508,0.16267701,96812.0,96811.0,0.10055476]
[1740242644713,0.16267701,96812.0,96811.0,0.0837348]
[1740242645766,0.16914266,96812.0,96811.0,0.0837348]
[1740242649615,0.16914266,96812.0,96811.0,0.0827348]
[1740242649827,0.16914266,96812.0,96811.0,0.0837348]
[1740242650039,0.16914266,96812.0,96811.0,0.10155476]
[1740242653939,0.16914266,96812.0,96811.0,0.10240526]
[1740242655292,0.16914266,96812.0,96811.0,0.09740526]
[1740242659090,0.16914266,96812.0,96811.0,0.0785853]
[1740242659504,0.16914266,96812.0,96811.0,0.0009795]
[1740242660900,0.16914266,96812.0,96811.0,0.02213384]
[1740242661163,0.16914266,96812.0,96811.0,0.0009795]
[1740242661412,0.17014266,96812.0,96811.0,0.0009795]
[1740242665717,0.17014266,96812.0,96811.0,0.02135578]
[1740242665892,0.17184386,96812.0,96811.0,0.02135578]
[1740242666423,0.17184386,96812.0,96811.0,0.0009795]
[1740242667015,0.01690486,96812.0,96811.0,0.0009795]
[1740242667630,0.01690486,96812.0,96811.0,0.01879946]
[1740242667832,0.01690486,96812.0,96811.0,0.0009795]
[1740242668030,0.01690486,96812.0,96811.0,0.01879946]
[1740242668235,0.01690486,96812.0,96811.0,0.0009795]
[1740242668455,0.01690486,96812.0,96811.0,0.01879946]
[1740242668635,0.01690486,96812.0,96811.0,0.0009795]
[1740242668965,0.01690486,96812.0,96811.0,0.01879946]
[1740242669196,0.01690486,96812.0,96811.0,0.0009795]
[1740242671205,0.17184386,96812.0,96811.0,0.0009795]
[1740242681410,0.17084386,96812.0,96811.0,0.0009795]
[1740242681914,0.17284386,96812.0,96811.0,0.0009795]
[1740242682119,0.16837821,96812.0,96811.0,0.0009795]
[1740242682691,0.16837821,96812.0,96811.0,0.0010415]
[1740242683678,0.16637821,96812.0,96811.0,0.0010415]
[1740242684063,0.16837821,96812.0,96811.0,0.0010415]
[1740242691394,0.1606402,96812.0,96811.0,0.0010415]
[1740242697798,0.1586402,96812.0,96811.0,0.0010415]
[1740242698180,0.1606402,96812.0,96811.0,0.0010415]
[1740242699340,0.1586402,96812.0,96811.0,0.0010415]
[1740242699744,0.1606402,96812.0,96811.0,0.0010415]
[1740242702214,0.0057012,96812.0,96811.0,0.0793415]
[1740242702389,0.0057012,96812.0,96811.0,0.09781237]
[1740242702956,0.0057012,96812.0,96811.0,0.35539906]
[1740242703126,0.0037012,96812.0,96811.0,0.43676549]
[1740242703708,0.0094548,96812.0,96811.0,0.43676549]
[1740242704085,0.0094548,96812.0,96811.0,0.43776549]
[1740242704832,0.0017012,96812.0,96811.0,0.43776549]
[1740242705861,0.0017012,96812.0,96811.0,0.45230634]
[1740242706829,0.0027012,96812.0,96811.0,0.45130634]
[1740242707067,0.0027012,96812.0,96811.0,0.43707484]
[1740242707282,0.0027012,96812.0,96811.0,0.45430634]
[1740242708615,0.0027012,96812.0,96811.0,0.29936534]
[1740242708907,0.0027012,96812.0,96811.0,0.28482449]
[1740242709308,0.0027012,96812.0,96811.0,0.43976549]
[1740242714583,0.0027012,96812.0,96811.0,0.1821788]
[1740242714886,0.0027012,96812.0,96811.0,0.2588198]
[1740242727766,0.0027012,96812.0,96811.0,0.36146549]
[1740242731734,0.0027012,96812.0,96811.0,0.43666549]
[1740242733907,0.0027012,96812.0,96811.0,0.45120634]
[1740242738811,0.0027012,96812.0,96811.0,0.49800634]
[1740242739894,0.0027012,96812.0,96811.0,0.49500634]
[1740242740099,0.0017012,96812.0,96811.0,0.49500634]
[1740242740302,0.0017012,96812.0,96811.0,0.50000634]
[1740242740537,0.0017012,96812.0,96811.0,0.50300634]
[1740242740538,0.0027012,96812.0,96811.0,0.50300634]
[1740242740732,0.0027012,96812.0,96811.0,0.49800634]
[1740242741303,0.0027012,96812.0,96811.0,0.51844899]
[1740242742047,0.0037012,96812.0,96811.0,0.52544899]
[1740242746087,0.0037012,96812.0,96811.0,0.50500634]
[1740242756237,0.0037012,96812.0,96811.0,0.42240054]
[1740242764707,0.0037012,96812.0,96811.0,0.44177753]
[1740242769303,2e-07,96812.0,96811.0,0.61177753]
[1740242769534,0.0017012,96812.0,96811.0,0.64407136]
[1740242770296,0.001701,96812.0,96811.0,0.63707136]
[1740242770914,0.001701,96812.0,96811.0,0.63407136]
[1740242771090,0.002701,96812.0,96811.0,0.64007136]
[1740242771473,0.002701,96812.0,96811.0,0.64707136]
[1740242773060,0.002701,96812.0,96811.0,0.97077136]
[1740242773466,0.002701,96812.0,96811.0,0.95077136]
[1740242774297,0.002701,96812.0,96811.0,0.97077136]
[1740242775561,0.002701,96812.0,96811.0,0.95139437]
[1740242777514,0.002701,96812.0,96811.0,0.95462651]
[1740242777730,0.002701,96812.0,96811.0,0.97399211]
[1740242780440,0.002701,96812.0,96811.0,0.98211211]
[1740242780943,0.002701,96812.0,96811.0,0.96211211]
[1740242781110,0.002701,96812.0,96811.0,0.79969828]
[1740242781349,0.002701,96812.0,96811.0,0.63515743]
[1740242781971,0.002701,96812.0,96811.0,0.64969828]
[1740242782680,0.002701,96812.0,96811.0,0.64269828]
[1740242782880,0.001701,96812.0,96811.0,0.64369828]
[1740242783083,0.001701,96812.0,96811.0,0.64969828]
[1740242784844,0.001701,96812.0,96811.0,0.32599828]
[1740242791109,0.001701,96812.0,96811.0,0.41898006]
[1740242798820,0.001701,96812.0,96811.0,0.35697581]
[1740242802398,0.001701,96812.0,96811.0,0.32599828]
[1740242805422,0.001701,96812.0,96811.0,0.41898006]
[1740242808785,0.001701,96812.0,96811.0,0.41574792]
[1740242809122,0.001701,96812.0,96811.0,0.41898044]
[1740242810704,0.001701,96812.0,96811.0,0.24949859]
[1740242811728,0.001701,96812.0,96811.0,0.24249859]
[1740242811863,0.15664,96812.0,96811.0,0.23649859]
[1740242812067,0.15664,96812.0,96811.0,0.1338529]
[1740242812277,0.15664,96812.0,96811.0,0.1196214]
[1740242812678,0.23324,96812.0,96811.0,0.1196214]
[1740242812899,0.23324,96812.0,96811.0,0.1246214]
[1740242813277,0.23324,96812.0,96811.0,0.1196214]
[1740242813658,0.23324,96812.0,96811.0,0.1042558]
[1740242814772,0.23324,96812.0,96811.0,0.10102328]
[1740242815709,0.23324,96812.0,96811.0,0.0080415]
[1740242821949,0.23324,96812.0,96811.0,0.02425923]
[1740242822123,0.23324,96812.0,96811.0,0.0080415]
[1740242823187,0.23324,96812.0,96811.0,0.02425923]
[1740242823408,0.23324,96812.0,96811.0,0.0080415]
[1740242823621,0.23324,96812.0,96811.0,0.02425923]
[1740242823836,0.23324,96812.0,96811.0,0.0080415]
[1740242824736,0.23324,96812.0,96811.0,0.02425923]
[1740242825905,0.078301,96812.0,96811.0,0.02425923]
[1740242826166,0.001701,96812.0,96811.0,0.1629825]
[1740242826650,0.001701,96812.0,96811.0,0.02425923]
[1740242826887,0.001701,96812.0,96811.0,0.17920023]
[1740242827414,0.001701,96812.0,96811.0,0.02425923]
[1740242828770,0.001701,96812.0,96811.0,0.17920023]
[1740242832325,0.15664,96812.0,96811.0,0.02425923]
[1740242832572,0.20634,96812.0,96811.0,0.0080415]
[1740242833289,0.20634,96812.0,96811.0,0.0040415]
[1740242833736,0.20634,96812.0,96811.0,0.0010415]
[1740242833974,0.28154,96812.0,96811.0,0.0020415]
[1740242835198,0.28354,96812.0,96811.0,0.0010415]
[1740242835555,0.28654,96812.0,96811.0,0.0010415]
[1740242844285,0.61624,96812.0,96811.0,0.0010415]
[1740242844623,0.90578787,96812.0,96811.0,0.0010415]
[1740242850077,0.94024389,96812.0,96811.0,0.0010415]
[1740242851281,0.93824389,96812.0,96811.0,0.0010415]
[1740242852241,0.94324389,96812.0,96811.0,0.0010415]
[1740242852457,0.94024389,96812.0,96811.0,0.0010415]
[1740242852680,0.94624389,96812.0,96811.0,0.0020415]
[1740242853185,0.94024389,96812.0,96811.0,0.0010415]
[1740242853628,0.94124389,96812.0,96811.0,0.0020415]
[1740242853853,0.94624389,96812.0,96811.0,0.0020415]
[1740242858026,0.94124389,96812.0,96811.0,0.0020415]
[1740242858250,0.94724389,96812.0,96811.0,0.0020415]
[1740242858479,0.94724389,96812.0,96811.0,0.0010415]
[1740242858686,0.94124389,96812.0,96811.0,0.0010415]
[1740242858898,0.94724389,96812.0,96811.0,0.0010415]